bitfinex-derivatives/quotes_ETHF0:USTF0_20241005
["timestamp","ask_amount","ask_price","bid_price","bid_amount"]
[1728130629119,4.83299951,2418.8,2418.7,1.76251314]
[1728130630016,1.62519951,2418.8,2418.7,1.76251314]
[1728130630216,1.62519951,2418.8,2418.7,3.10648644]
[1728130630217,4.83299951,2418.8,2418.7,3.10648644]
[1728130630621,1.62519951,2418.8,2418.7,3.10648644]
[1728130630822,4.83299951,2418.8,2418.7,3.10648644]
[1728130631023,5.12237951,2418.8,2418.7,3.10649332]
[1728130631223,4.83299951,2418.8,2418.7,3.10649332]
[1728130632226,3.2078,2418.8,2418.7,3.64936104]
[1728130632529,1.6265364,2418.8,2418.7,3.64936104]
[1728130632722,4.8343364,2418.8,2418.7,3.64936104]
[1728130633226,3.2078,2418.8,2418.7,3.64936104]
[1728130633415,3.2078,2418.8,2418.7,3.64982796]
[1728130633622,4.83431794,2418.8,2418.7,3.64982796]
[1728130637131,1.62651794,2418.8,2418.7,3.64982796]
[1728130638334,1.62651794,2418.8,2418.7,3.64978525]
[1728130643036,1.62651794,2418.8,2418.7,3.64974176]
[1728130647740,2.02761794,2418.8,2418.7,3.64974176]
[1728130648039,2.02761794,2418.8,2418.7,3.64979493]
[1728130648431,2.45951794,2418.8,2418.7,3.64979493]
[1728130652937,2.45951794,2418.8,2418.7,3.64986487]
[1728130657547,0.833,2418.8,2418.7,3.64986487]
[1728130659939,4.49094284,2418.8,2418.7,2.97017487]
[1728130660139,5.17442284,2418.8,2418.7,2.42935261]
[1728130660339,5.17442284,2418.8,2418.7,1.0848686]
[1728130660556,9.30882284,2418.8,2418.7,2.42964285]
[1728130660853,0.28939,2418.7,2418.6,1.0848686]
[1728130661044,3.94831882,2418.7,2418.6,1.0848686]
[1728130661244,8.08271882,2418.7,2418.6,1.0848686]
[1728130662746,0.2894,2418.6,2418.5,1.7640886]
[1728130662946,5.66571872,2418.6,2418.5,1.7640886]
[1728130663145,5.37631872,2418.6,2418.5,1.7640886]
[1728130663653,5.66571872,2418.6,2418.5,1.4746686]
[1728130664454,5.66571872,2418.6,2418.5,0.3898]
[1728130665048,5.66571872,2418.6,2418.5,1.4746686]
[1728130665451,5.66571872,2418.6,2418.5,0.3898]
[1728130666154,2.45791872,2418.6,2418.5,0.3898]
[1728130666354,5.66571872,2418.6,2418.5,0.3898]
[1728130666551,5.66571872,2418.6,2418.5,0.67922]
[1728130667062,3.4972,2418.6,2418.5,0.67922]
[1728130668550,4.9872,2418.6,2418.5,0.67922]
[1728130669651,1.7794,2418.6,2418.5,0.67922]
[1728130669851,4.9872,2418.6,2418.5,0.67922]
[1728130670359,4.9872,2418.6,2418.5,0.3898]
[1728130672662,6.61241544,2418.6,2418.5,0.3898]
[1728130674161,17.00071872,2418.6,2418.3,1.0848686]
[1728130674360,4.20094579,2418.4,2418.0,0.5129]
[1728130674663,3.40365119,2418.1,2418.0,0.4169]
[1728130675458,1.77946,2418.1,2418.0,0.4169]
[1728130678071,1.49,2418.1,2418.0,0.4169]
[1728130678262,3.49726,2418.2,2418.0,0.70637]
[1728130678566,3.49726,2418.2,2418.1,0.8323]
[1728130678963,3.49726,2418.2,2418.1,1.12176]
[1728130680371,3.49726,2418.2,2418.1,0.8323]
[1728130680764,3.49726,2418.2,2418.1,1.12176]
[1728130681668,3.49726,2418.2,2418.1,0.8323]
[1728130683459,3.2078,2418.2,2418.1,1.12176]
[1728130684171,3.2078,2418.2,2418.1,0.8323]
[1728130684375,3.49725,2418.2,2418.1,0.8323]
[1728130684569,3.2078,2418.2,2418.1,0.8323]
[1728130684769,1.62419119,2418.4,2418.1,4.9675]
[1728130684971,3.49722,2418.5,2418.3,0.28943]
[1728130685267,3.49722,2418.5,2418.4,0.8245]
[1728130685471,4.98722,2418.5,2418.4,0.8245]
[1728130685875,5.42402,2418.5,2418.4,0.8245]
[1728130686266,7.04821119,2418.5,2418.4,0.8245]
[1728130688266,4.98722,2418.5,2418.4,0.8245]
[1728130688470,3.49722,2418.5,2418.4,0.8245]
[1728130688872,3.49722,2418.5,2418.4,1.2418]
[1728130689266,0.28942,2418.5,2418.4,1.2418]
[1728130689471,10.70392589,2418.6,2418.4,1.53122]
[1728130689671,0.28942,2418.5,2418.4,1.2418]
[1728130691475,10.41451589,2418.6,2418.4,1.2418]
[1728130691681,10.70392589,2418.6,2418.4,1.53122]
[1728130691984,0.28942,2418.5,2418.4,1.2418]
[1728130692685,1.77942,2418.5,2418.4,0.8245]
[1728130693178,2.21172,2418.5,2418.4,0.8245]
[1728130696884,2.21172,2418.5,2418.4,0.4186]
[1728130699482,1.9223,2418.5,2418.4,0.4186]
[1728130699682,1.9223,2418.5,2418.4,0.70803]
[1728130699882,2.21172,2418.5,2418.4,0.70803]
[1728130700482,2.21172,2418.5,2418.4,0.4186]
[1728130702591,1.9223,2418.5,2418.4,0.4186]
[1728130702793,1.9223,2418.5,2418.4,0.70803]
[1728130703481,2.21172,2418.5,2418.4,0.4186]
[1728130703687,3.83591119,2418.5,2418.4,0.4186]
[1728130704486,3.83591119,2418.5,2418.4,0.70803]
[1728130704685,3.54649119,2418.5,2418.4,0.70803]
[1728130705483,3.83591119,2418.5,2418.4,0.4186]
[1728130706395,3.54649119,2418.5,2418.4,0.70803]
[1728130706889,3.83591119,2418.5,2418.4,0.4186]
[1728130707289,3.83591119,2418.5,2418.4,0.70803]
[1728130708487,3.83591119,2418.5,2418.4,0.4186]
[1728130709189,3.83591119,2418.5,2418.4,0.70803]
[1728130711890,3.83591119,2418.5,2418.4,0.4186]
[1728130714101,3.83591119,2418.5,2418.4,0.70803]
[1728130715000,2.34591119,2418.5,2418.4,0.70803]
[1728130715198,2.34591119,2418.5,2418.4,0.4186]
[1728130719504,0.72172,2418.5,2418.4,0.4186]
[1728130720600,0.28943,2418.4,2418.2,1.3743086]
[1728130720904,2.33619632,2418.4,2418.3,0.4141]
[1728130721503,0.71173,2418.4,2418.3,0.4141]
[1728130721704,0.71173,2418.4,2418.3,0.70354]
[1728130721705,2.33639351,2418.4,2418.3,0.70354]
[1728130721905,0.71173,2418.4,2418.3,0.70354]
[1728130722809,0.71173,2418.4,2418.3,0.4141]
[1728130723509,0.71173,2418.4,2418.3,0.70354]
[1728130724304,2.87731826,2418.4,2418.3,0.70354]
[1728130725010,2.87731826,2418.4,2418.3,0.4141]
[1728130725410,2.87731826,2418.4,2418.3,1.4989686]
[1728130727309,2.87731826,2418.4,2418.3,1.7884086]
[1728130727613,2.87731826,2418.4,2418.3,1.4989686]
[1728130729107,2.87731826,2418.4,2418.3,1.7884086]
[1728130732409,2.87731826,2418.4,2418.3,1.4989686]
[1728130734208,2.87731826,2418.4,2418.3,1.5347686]
[1728130734718,0.71173,2418.4,2418.3,1.5347686]
[1728130735218,2.87981071,2418.4,2418.3,1.5347686]
[1728130735518,0.71173,2418.4,2418.3,1.5347686]
[1728130735912,2.87974549,2418.4,2418.3,1.5347686]
[1728130736813,6.08754549,2418.4,2418.3,1.5347686]
[1728130737205,2.87974549,2418.4,2418.3,1.5347686]
[1728130738010,6.08754549,2418.4,2418.3,1.5347686]
[1728130738411,2.87974549,2418.4,2418.3,1.5347686]
[1728130738613,6.08754549,2418.4,2418.3,1.5347686]
[1728130738814,6.08760294,2418.4,2418.3,1.5347686]
[1728130739010,3.91953,2418.4,2418.3,1.5347686]
[1728130739211,6.08769376,2418.4,2418.3,1.5347686]
[1728130739918,3.91953,2418.4,2418.3,1.5347686]
[1728130740511,0.71173,2418.4,2418.3,1.5347686]
[1728130740820,3.91953,2418.4,2418.3,1.5347686]
[1728130743316,3.91953,2418.4,2418.3,1.1206686]
[1728130743317,5.40953,2418.4,2418.3,1.1206686]
[1728130743528,9.54473,2418.4,2418.3,0.0358]
[1728130743727,9.95673,2418.4,2418.3,0.0358]
[1728130744322,0.28946,2418.1,2418.0,1.0848686]
[1728130744518,5.91775386,2418.1,2417.8,1.5009686]
[1728130744714,3.94655797,2417.9,2417.8,1.5009686]
[1728130744917,3.94655797,2417.9,2417.8,0.4161]
[1728130745814,3.65706797,2417.9,2417.8,0.4161]
[1728130746012,2.16706797,2417.9,2417.8,0.4161]
[1728130746214,1.62454118,2417.9,2417.8,0.4161]
[1728130748521,0.71478,2418.0,2417.8,0.4161]
[1728130748522,2.33932118,2418.0,2417.8,0.4161]
[1728130749019,1.62454118,2417.9,2417.8,0.4161]
[1728130749220,2.33932118,2418.0,2417.8,0.7056]
[1728130749719,1.91402118,2418.0,2417.8,0.7056]
[1728130749916,6.86486797,2418.1,2417.9,1.77949]
[1728130749917,5.12180118,2418.1,2417.9,1.77949]
[1728130750121,4.83234118,2418.1,2418.0,0.4288]
[1728130750323,4.83234118,2418.1,2418.0,0.71828]
[1728130750523,3.2078,2418.1,2418.0,0.71828]
[1728130752926,3.2078,2418.1,2418.0,2.20828]
[1728130754728,1.62454118,2418.3,2418.1,0.28946]
[1728130755033,1.6235094,2418.3,2418.2,0.4234]
[1728130755423,3.93004,2418.4,2418.2,0.4234]
[1728130755424,5.5535494,2418.4,2418.2,0.71285]
[1728130756634,5.5535494,2418.4,2418.3,0.4307]
[1728130757830,5.1207494,2418.4,2418.3,0.4307]
[1728130758425,3.49724,2418.4,2418.3,0.4307]
[1728130759022,0.28944,2418.4,2418.3,0.4307]
[1728130760135,5.2436094,2418.5,2418.3,0.4307]
[1728130760327,5.5330294,2418.5,2418.3,0.4307]
[1728130760930,5.5330294,2418.5,2418.3,0.72014]
[1728130761130,4.8313094,2418.5,2418.3,0.4307]
[1728130761331,4.8313094,2418.5,2418.4,0.28943]
[1728130761631,3.2078,2418.5,2418.4,0.28943]
[1728130762028,1.6235094,2418.6,2418.5,0.28942]
[1728130762535,0.2894,2418.6,2418.5,0.4327]
[1728130762731,1.9129094,2418.6,2418.5,0.4327]
[1728130763129,0.2894,2418.6,2418.5,0.4327]
[1728130768730,4.8313094,2418.7,2418.6,0.2894]
[1728130768935,1.09518,2418.8,2418.6,0.2894]
[1728130769132,0.3975,2418.8,2418.7,0.4358]
[1728130769336,0.3975,2418.8,2418.7,0.72519]
[1728130769636,0.68688,2418.8,2418.7,2.21519]
[1728130770943,0.68688,2418.8,2418.7,1.9258]
[1728130771644,0.68688,2418.8,2418.7,2.21519]
[1728130773944,0.68688,2418.8,2418.7,1.9258]
[1728130774145,0.3975,2418.8,2418.7,2.21519]
[1728130776342,3.633,2419.0,2418.7,2.21519]
[1728130776644,3.633,2419.0,2418.9,0.28937]
[1728130776645,3.2078,2419.0,2418.9,0.28937]
[1728130779645,0.4262,2419.1,2419.0,0.28936]
[1728130779835,0.4262,2419.1,2419.0,1.77936]
[1728130780040,0.4262,2419.1,2419.0,5.91296]
[1728130783543,0.4262,2419.1,2419.0,1.77936]
[1728130795057,3.2078,2419.2,2419.0,1.49]
[1728130795264,3.2078,2419.2,2419.1,1.77934]
[1728130795463,3.2078,2419.2,2419.1,15.0245655]
[1728130796063,0.825,2419.5,2419.4,0.28931]
[1728130796362,0.825,2419.5,2419.4,1.77931]
[1728130796964,0.4245,2419.5,2419.4,1.77931]
[1728130797171,0.4245,2419.5,2419.4,2.19151]
[1728130798166,0.4005,2419.7,2419.6,0.28928]
[1728130798365,0.4005,2419.7,2419.6,1.77928]
[1728130816287,0.4005,2419.7,2419.6,2.66320391]
[1728130818595,0.4005,2419.7,2419.6,1.77928]
[1728130823289,0.481,2420.1,2419.6,15.23892711]
[1728130823497,0.4386,2420.1,2420.0,1.77924]
[1728130824688,0.4386,2420.1,2420.0,2.19664]
[1728130831691,0.4203,2420.2,2420.1,0.28922]
[1728130841099,0.3991,2420.3,2420.2,0.28921]
[1728130841415,0.3991,2420.3,2420.2,1.77921]
[1728130841594,0.3991,2420.3,2420.2,1.49]
[1728130842695,0.3991,2420.3,2420.2,1.77921]
[1728130842897,0.3991,2420.3,2420.2,3.2793786]
[1728130845600,0.3991,2420.3,2420.2,4.1615682]
[1728130845896,0.3951,2420.4,2420.3,0.2892]
[1728130846303,0.3951,2420.4,2420.3,0.6891]
[1728130847505,0.4127,2420.5,2420.4,0.28919]
[1728130847704,0.4127,2420.5,2420.4,1.77919]
[1728130851504,0.4127,2420.5,2420.4,1.49]
[1728130852109,0.4127,2420.5,2420.4,1.77919]
[1728130852611,0.4127,2420.5,2420.4,1.49]
[1728130857506,0.4127,2420.5,2420.4,1.77919]
[1728130858209,0.4127,2420.5,2420.4,1.49]
[1728130859411,0.70188,2420.5,2420.4,1.49]
[1728130859616,0.4127,2420.5,2420.4,1.49]
[1728130860317,2.0362094,2420.5,2420.4,1.49]
[1728130861912,2.3253894,2420.5,2420.4,1.49]
[1728130862111,0.70188,2420.5,2420.4,1.49]
[1728130862712,0.70188,2420.5,2420.4,1.77919]
[1728130863015,0.70188,2420.5,2420.4,1.49]
[1728130866623,4.5439,2420.5,2420.3,1.0848686]
[1728130866819,0.2892,2420.3,2420.2,1.0848686]
[1728130867121,0.28921,2420.2,2420.1,2.9725686]
[1728130867311,0.72501,2420.2,2420.1,2.9725686]
[1728130867515,0.72501,2420.2,2420.1,1.4825686]
[1728130867720,0.72501,2420.2,2420.1,2.9725686]
[1728130869215,0.4358,2420.2,2420.1,4.31855942]
[1728130869422,0.4358,2420.2,2420.1,2.9725686]
[1728130870015,0.4358,2420.2,2420.1,4.3187541]
[1728130870224,0.4358,2420.2,2420.1,4.3187542]
[1728130870522,0.4358,2420.2,2420.1,2.9725686]
[1728130870715,0.4358,2420.2,2420.1,4.31876738]
[1728130870923,0.4358,2420.2,2420.1,4.60798738]
[1728130871220,0.4358,2420.2,2420.1,4.60530614]
[1728130871521,0.4358,2420.2,2420.1,3.52311878]
[1728130871719,0.4358,2420.2,2420.1,5.14880964]
[1728130876224,0.4358,2420.2,2420.1,3.80261086]
[1728130876429,0.4358,2420.2,2420.1,5.14892871]
[1728130881226,0.4358,2420.2,2420.1,5.14909134]
[1728130885929,0.4358,2420.2,2420.1,5.14962303]
[1728130890638,0.4358,2420.2,2420.1,3.80261086]
[1728130890933,0.4358,2420.2,2420.1,5.15031416]
[1728130894536,0.4358,2420.2,2420.1,5.18611416]
[1728130899540,0.4358,2420.2,2420.1,4.89689416]
[1728130899741,0.72501,2420.2,2420.1,4.89689416]
[1728130900143,0.72501,2420.2,2420.1,5.18611416]
[1728130900341,2.3485194,2420.2,2420.1,5.18611416]
[1728130900848,2.3485194,2420.2,2420.1,5.18645918]
[1728130901339,2.3485194,2420.2,2420.1,4.89723918]
[1728130901557,2.3485194,2420.2,2420.1,4.897307]
[1728130901955,2.3485194,2420.2,2420.1,5.186527]
[1728130902256,2.3485194,2420.2,2420.1,4.897307]
[1728130902457,17.72187797,2420.2,2420.1,0.0358]
[1728130902652,18.26476386,2420.2,2420.1,0.0358]
[1728130902954,15.55481,2420.2,2420.1,0.0358]
[1728130904359,16.47181,2420.2,2420.1,0.0358]
[1728130906254,19.17952244,2420.2,2420.1,0.0358]
[1728130912666,16.47181,2420.2,2420.1,0.0358]
[1728130913062,19.1781273,2420.2,2420.1,0.0358]
[1728130915670,18.2611273,2420.2,2420.1,0.0358]
[1728130915968,13.1781273,2420.2,2420.1,0.0358]
[1728130916464,13.1781273,2420.2,2419.8,0.8523]
[1728130916465,12.8889173,2420.2,2419.8,0.8523]
[1728130916774,1.91239661,2419.9,2419.8,0.8523]
[1728130916974,0.28925,2419.9,2419.8,0.8523]
[1728130925684,0.70155,2419.9,2419.8,0.4378]
[1728130928877,0.70155,2419.9,2419.8,0.8478]
[1728130930880,0.28925,2419.9,2419.8,0.8478]
[1728130938378,1.91239661,2419.9,2419.8,0.8478]
[1728130938580,0.28925,2419.9,2419.8,0.8478]
[1728130938985,1.91239661,2419.9,2419.8,0.8478]
[1728130943780,0.28925,2419.9,2419.8,0.8478]
[1728130944989,2.45344549,2419.9,2419.8,0.8478]
[1728130945181,0.28925,2419.9,2419.8,0.8478]
[1728130945385,2.45344549,2419.9,2419.8,0.8478]
[1728130946995,2.45344549,2419.9,2419.8,0.8836]
[1728130947287,2.45344549,2419.9,2419.8,1.96711367]
[1728130948288,2.9955673,2419.9,2419.8,2.23437546]
[1728130948589,2.9955673,2419.9,2419.8,3.86006632]
[1728130948784,0.28925,2419.9,2419.8,3.86006632]
[1728130949391,2.9955673,2419.9,2419.8,2.23437546]
[1728130949591,2.9955673,2419.9,2419.8,3.86006632]
[1728130949894,2.9955673,2419.9,2419.8,3.31933519]
[1728130950201,2.9955673,2419.9,2419.8,3.31937013]
[1728130950582,2.7063173,2419.9,2419.8,3.31937013]
[1728130951197,2.7063173,2419.9,2419.8,3.86010126]
[1728130951397,2.7063173,2419.9,2419.8,2.2344104]
[1728130951599,2.7063173,2419.9,2419.8,3.31937736]
[1728130951785,2.7063173,2419.9,2419.8,3.31936185]
[1728130952482,2.7063173,2419.9,2419.8,2.23439489]
[1728130952688,6.6069673,2420.0,2419.8,3.86008575]
[1728130952890,6.6069673,2420.0,2419.9,1.084924]
[1728130953102,3.90065,2420.0,2419.9,1.084924]
[1728130953594,6.61263475,2420.0,2419.9,1.084924]
[1728130953900,3.40483475,2420.0,2419.9,1.084924]
[1728130954192,6.61263475,2420.0,2419.9,1.084924]
[1728130954697,3.40483475,2420.0,2419.9,1.084924]
[1728130954886,6.61261226,2420.0,2419.9,1.084924]
[1728130955088,6.61260512,2420.0,2419.9,1.084924]
[1728130955497,3.40480512,2420.0,2419.9,1.084924]
[1728130956388,0.69285,2420.0,2419.9,1.084924]
[1728130956892,6.61263815,2420.0,2419.9,1.084924]
[1728130957096,3.90065,2420.0,2419.9,1.084924]
[1728130957295,3.4048218,2420.0,2419.9,1.084924]
[1728130958396,3.90065,2420.0,2419.9,1.084924]
[1728130958794,6.61262066,2420.0,2419.9,1.084924]
[1728130959097,3.90065,2420.0,2419.9,1.084924]
[1728130959292,0.69285,2420.0,2419.9,1.084924]
[1728130960502,3.90065,2420.0,2419.9,1.084924]
[1728130961001,0.28925,2419.9,2419.8,1.968524]
[1728130961302,3.00107799,2419.9,2419.8,3.3199814]
[1728130961488,3.00107799,2419.9,2419.8,3.31999925]
[1728130963597,3.00107799,2419.9,2419.8,3.31997009]
[1728130963802,3.00107799,2419.9,2419.8,1.968524]
[1728130964199,6.20887799,2419.9,2419.8,1.968524]
[1728130964698,3.00107799,2419.9,2419.8,1.968524]
[1728130965102,6.20887799,2419.9,2419.8,1.968524]
[1728130968002,6.20887799,2419.9,2419.8,0.8836]
[1728130968395,6.20887799,2419.9,2419.8,0.4736]
[1728130968892,9.11985,2419.9,2419.8,0.0358]
[1728130969198,0.28928,2419.6,2419.5,1.486924]
[1728130969396,6.20776091,2419.6,2419.5,0.402]
[1728130969598,10.34056091,2419.6,2419.5,0.402]
[1728130971406,7.62988,2419.6,2419.5,0.402]
[1728130971894,9.79637849,2419.6,2419.5,0.402]
[1728130972098,7.62988,2419.6,2419.5,0.402]
[1728130973394,9.79564326,2419.6,2419.5,0.402]
[1728130973603,9.79564209,2419.6,2419.5,0.402]
[1728130973900,7.62988,2419.6,2419.5,0.402]
[1728130974106,10.34056091,2419.6,2419.5,0.402]
[1728130974398,10.34056091,2419.6,2419.3,0.8594]
[1728130974399,0.28931,2419.4,2419.3,0.8594]
[1728130974603,1.9132704,2419.4,2419.3,0.8594]
[1728130975601,2.3451704,2419.4,2419.3,0.8594]
[1728130975998,2.0558604,2419.4,2419.3,0.8594]
[1728130976403,2.0558604,2419.4,2419.3,1.14872]
[1728130976600,1.6239604,2419.4,2419.3,1.14872]
[1728130976801,1.6239604,2419.4,2419.3,0.8594]
[1728130977002,1.6239604,2419.4,2419.3,1.14872]
[1728130977600,1.6239604,2419.4,2419.3,2.63872]
[1728130978397,2.0275604,2419.5,2419.3,2.63872]
[1728130979106,1.6239604,2419.5,2419.4,1.77931]
[1728130979308,5.37311296,2419.6,2419.4,5.6236]
[1728130979309,4.8317604,2419.6,2419.4,5.6236]
[1728130979509,4.8317604,2419.6,2419.5,0.7131]
[1728130980226,3.2078,2419.6,2419.5,0.7131]
[1728130980405,1.6239604,2419.7,2419.5,6.0466]
[1728130980713,1.6239604,2419.9,2419.8,0.28926]
[1728130980910,1.6239604,2420.0,2419.8,0.28926]
[1728130981105,1.9132004,2420.0,2419.9,0.8414]
[1728130981412,1.9132004,2420.0,2419.9,1.2697]
[1728130981413,1.6239604,2420.0,2419.9,1.2697]
[1728130982313,4.8317604,2420.0,2419.9,1.2697]
[1728130984414,1.6239604,2420.0,2419.9,1.2697]
[1728130984611,5.1210004,2420.0,2419.9,1.2697]
[1728130985710,4.8317604,2420.0,2419.9,1.2697]
[1728130986304,5.1210004,2420.0,2419.9,1.2697]
[1728130986515,4.8317604,2420.0,2419.9,1.2697]
[1728130987023,5.1210004,2420.0,2419.9,1.2697]
[1728130988808,1.9132004,2420.0,2419.9,1.2697]
[1728130989009,5.1210004,2420.0,2419.9,1.2697]
[1728130989413,1.9132004,2420.0,2419.9,1.2697]
[1728130989613,5.1210004,2420.0,2419.9,1.2697]
[1728130990210,1.9132004,2420.0,2419.9,1.2697]
[1728130990510,5.1210004,2420.0,2419.9,1.2697]
[1728130990716,1.9132004,2420.0,2419.9,1.2697]
[1728130992120,1.6239604,2420.0,2419.9,1.2697]
[1728130992321,1.9132004,2420.0,2419.9,1.2697]
[1728130995511,0.28924,2420.0,2419.9,1.2697]
[1728130995707,1.9132004,2420.0,2419.9,1.2697]
[1728130995921,1.9132004,2420.0,2419.9,2.7597]
[1728130996116,5.1209904,2420.1,2419.9,2.7597]
[1728130996514,4.8317604,2420.1,2419.9,2.7597]
[1728130996714,5.1209904,2420.1,2419.9,2.7597]
[1728130997118,0.28924,2420.0,2419.9,2.7597]
[1728130999817,5.1209904,2420.1,2419.9,2.7597]
[1728131000224,0.28924,2420.0,2419.9,2.7955]
[1728131000424,1.9132004,2420.0,2419.9,2.7955]
[1728131000825,1.6239604,2420.0,2419.9,2.7955]
[1728131001025,5.1209904,2420.1,2419.9,2.7955]
[1728131001414,0.28924,2420.0,2419.9,2.7955]
[1728131002524,1.9131904,2420.1,2419.9,2.7955]
[1728131002828,0.28924,2420.0,2419.9,2.7955]
[1728131008422,1.6239604,2420.1,2419.9,2.7955]
[1728131008423,1.9131904,2420.1,2419.9,2.7955]
[1728131009531,0.28923,2420.1,2419.9,2.7955]
[1728131011220,1.9131904,2420.1,2419.9,2.7955]
[1728131012227,0.28923,2420.1,2419.9,2.7955]
[1728131012425,0.28924,2420.0,2419.9,2.7955]
[1728131012928,0.28924,2420.0,2419.9,6.9275]
[1728131013228,1.6239604,2420.2,2419.9,6.9275]
[1728131013229,1.9131804,2420.2,2419.9,6.9275]
[1728131013531,0.28922,2420.2,2420.0,1.49]
[1728131014836,2.4308604,2420.3,2420.0,1.49]
[1728131015026,0.28922,2420.1,2420.0,1.49]
[1728131015228,2.4308604,2420.3,2420.0,1.49]
[1728131015527,0.28922,2420.2,2420.0,1.49]
[1728131016130,0.28922,2420.1,2420.0,1.49]
[1728131020731,1.6239604,2420.2,2420.0,1.49]
[1728131020931,5.1209804,2420.2,2420.0,1.49]
[1728131021131,5.1209804,2420.2,2419.9,4.169674]
[1728131021734,1.9131804,2420.2,2419.9,4.169674]
[1728131021931,5.1209804,2420.2,2419.9,4.169674]
[1728131022331,5.1209804,2420.2,2419.9,4.133874]
[1728131023034,1.9131804,2420.2,2419.9,4.133874]
[1728131023437,1.6239604,2420.1,2420.0,1.084924]
[1728131025039,1.6239604,2420.1,2420.0,2.43483603]
[1728131025338,1.6239604,2420.1,2420.0,1.084924]
[1728131025535,1.6239604,2420.1,2420.0,1.35034]
[1728131026334,1.6239604,2420.1,2420.0,2.433368]
[1728131026635,1.6239604,2420.1,2420.0,2.43335479]
[1728131027340,5.66233296,2420.2,2420.0,2.97601765]
[1728131027535,5.66233296,2420.2,2420.1,1.08302197]
[1728131028633,2.45453296,2420.2,2420.1,1.08302197]
[1728131029337,2.16531296,2420.2,2420.1,1.08302197]
[1728131041242,2.16531296,2420.2,2420.1,1.37224197]
[1728131041446,2.16531296,2420.2,2420.1,1.08302197]
[1728131041947,3.26142296,2420.3,2420.1,2.43344883]
[1728131042147,3.26142296,2420.3,2420.1,1.08302197]
[1728131047856,2.16531296,2420.2,2420.1,1.08302197]
[1728131048050,2.16531296,2420.2,2420.1,2.43414619]
[1728131048254,2.45452296,2420.2,2420.1,2.43414619]
[1728131048754,2.16531296,2420.2,2420.1,2.43414619]
[1728131049056,3.26142296,2420.3,2420.1,2.43414619]
[1728131049254,3.26142296,2420.3,2420.2,1.08302197]
[1728131049452,1.09611,2420.3,2420.1,1.08302197]
[1728131049656,2.16819567,2420.2,2420.1,1.08302197]
[1728131049954,2.16819567,2420.2,2420.1,2.43419899]
[1728131050455,2.16819567,2420.2,2420.1,2.43442897]
[1728131050855,2.45740567,2420.2,2420.1,2.43442897]
[1728131051263,2.16819567,2420.2,2420.1,2.43442897]
[1728131051758,2.16819567,2420.2,2420.1,1.35117702]
[1728131051946,2.45740567,2420.2,2420.1,2.97686788]
[1728131052150,2.83820567,2420.2,2420.1,2.43427557]
[1728131052446,2.83820567,2420.2,2420.1,1.08309855]
[1728131052651,2.83820567,2420.2,2420.0,1.08309855]
[1728131052652,6.0028,2420.2,2420.0,1.08309855]
[1728131052849,6.0028,2420.2,2419.8,2.16947725]
[1728131052850,7.40848091,2420.1,2419.8,1.08309855]
[1728131053054,0.28925,2419.9,2419.8,1.08309855]
[1728131053255,0.28926,2419.8,2419.7,1.49749855]
[1728131053564,0.28926,2419.8,2419.6,1.08347068]
[1728131053565,4.85597,2419.8,2419.6,1.08347068]
[1728131053755,4.85597,2419.8,2419.5,1.08347068]
[1728131053756,0.28928,2419.6,2419.5,1.08347068]
[1728131053959,2.45767832,2419.6,2419.5,1.08347068]
[1728131054148,7.09339832,2419.6,2419.3,4.83349086]
[1728131054354,3.94769832,2419.5,2419.4,1.08383512]
[1728131054554,0.28931,2419.4,2419.3,1.08383512]
[1728131054749,1.62544817,2419.4,2419.3,1.08383512]
[1728131055556,3.40474817,2419.5,2419.2,1.78756512]
[1728131055755,3.11544817,2419.5,2419.2,1.78756512]
[1728131055957,3.40474817,2419.5,2419.2,1.78756512]
[1728131056162,1.62544817,2419.4,2419.2,1.78756512]
[1728131056366,3.40474817,2419.5,2419.2,1.78756512]
[1728131058159,1.91474817,2419.5,2419.2,1.78756512]
[1728131058462,1.91474817,2419.5,2419.3,0.28932]
[1728131058660,0.2893,2419.5,2419.3,0.28932]
[1728131059952,0.2893,2419.5,2419.2,0.70373]
[1728131059953,1.91474817,2419.5,2419.2,0.70373]
[1728131060454,0.2893,2419.5,2419.2,0.70373]
[1728131061164,7.40473817,2419.6,2419.3,0.28932]
[1728131063965,5.77929,2419.6,2419.3,0.28932]
[1728131070459,5.49,2419.6,2419.3,0.28932]
[1728131071272,5.77929,2419.6,2419.3,0.28932]
[1728131074668,5.49,2419.6,2419.3,0.28932]
[1728131080881,5.77929,2419.6,2419.3,0.28932]
[1728131081978,5.77929,2419.6,2419.2,0.4144]
[1728131082276,5.77929,2419.6,2419.2,0.70372]
[1728131084372,5.49,2419.6,2419.2,0.70372]
[1728131084574,0.2893,2419.5,2419.2,0.70372]
[1728131087172,0.2893,2419.5,2419.2,0.4144]
[1728131090377,0.28931,2419.4,2419.2,0.4144]
[1728131093679,0.28932,2419.3,2419.2,0.4144]
[1728131097192,2.74836817,2419.3,2419.2,0.4144]
[1728131097483,1.12292,2419.3,2419.2,0.4144]
[1728131097888,0.28933,2419.2,2419.1,1.08383512]
[1728131098085,0.28933,2419.2,2419.0,1.62569086]
[1728131098086,0.28934,2419.1,2419.0,1.08383512]
[1728131098277,0.28934,2419.1,2418.9,1.47023512]
[1728131098278,4.83352512,2419.1,2418.9,1.47023512]
[1728131098478,2.19026,2419.0,2418.9,1.47023512]
[1728131098684,4.61158091,2419.0,2418.7,1.08383512]
[1728131098994,5.6662836,2418.8,2418.7,1.47023512]
[1728131099484,3.49718,2418.8,2418.7,1.47023512]
[1728131100691,5.6662836,2418.8,2418.7,0.3864]
[1728131100990,3.2078,2418.8,2418.7,0.3864]
[1728131101194,3.2078,2418.8,2418.7,1.47023512]
[1728131101380,4.83350488,2418.8,2418.7,0.3864]
[1728131103488,5.12288488,2418.8,2418.7,0.3864]
[1728131104792,4.83350488,2418.8,2418.7,0.3864]
[1728131104993,3.2078,2418.8,2418.7,0.3864]
[1728131105188,1.62570488,2418.9,2418.8,0.28938]
[1728131105391,1.62570488,2418.9,2418.8,2.20188]
[1728131105590,4.83350488,2419.1,2418.9,0.28936]
[1728131105790,4.83350488,2419.1,2419.0,0.4007]
[1728131112396,1.62570488,2419.1,2419.0,0.4007]